Workbook

Sheet A类部分岗位总成绩
A1: 2023年江阴市公开招聘教师A类部分岗位面试成绩和总成绩
A2: （小学岗位、部分初高中岗位）
A3: 序号 | B3: 姓名 | C3: 准考证号 | D3: 职位代码 | E3: 职位名称 | F3: 单位名称 | G3: 笔试成绩 | H3: 抽签分组 | I3: 抽签号 | J3: 面试成绩 | K3: 专业加试成绩 | L3: 总成绩 | M3: 总成绩排名 | N3: 是否进入体检 | O3: 备注
A4: 001 | B4: 卞梦叶 | C4: 2305000101612 | D4: 1011 | E4: 小学语文 | F4: 小学教师 | G4: 83.5 | H4: A | I4: A06 | J4: 78.2 | L4: =G4*0.4+J4*0.6 -> 80.32 | M4: 1 | N4: 是
A5: 002 | B5: 张银海 | C5: 2305000101125 | D5: 1011 | E5: 小学语文 | F5: 小学教师 | G5: 82 | H5: A | I5: A09 | J5: 79 | L5: 80.2 | M5: 2 | N5: 是
A6: 003 | B6: 陆滢 | C6: 2305000101608 | D6: 1011 | E6: 小学语文 | F6: 小学教师 | G6: 75.5 | H6: A | I6: A04 | J6: 81.4 | L6: 79.04 | M6: 3 | N6: 是 | O6: 递补
A7: 004 | B7: 吴心仪 | C7: 2305000101204 | D7: 1011 | E7: 小学语文 | F7: 小学教师 | G7: 75.5 | H7: A | I7: A19 | J7: 81.2 | L7: 78.92 | M7: 4 | N7: 是 | O7: 递补
A8: 005 | B8: 崔盼盼 | C8: 2305000101522 | D8: 1011 | E8: 小学语文 | F8: 小学教师 | G8: 82.5 | H8: A | I8: A18 | J8: 75.8 | L8: 78.48 | M8: 5 | N8: 是
A9: 006 | B9: 施海榕 | C9: 2305000100421 | D9: 1011 | E9: 小学语文 | F9: 小学教师 | G9: 76 | H9: A | I9: A13 | J9: 80 | L9: 78.4 | M9: 6 | N9: 是
A10: 007 | B10: 张婧怡 | C10: 2305000103114 | D10: 1011 | E10: 小学语文 | F10: 小学教师 | G10: 76 | H10: A | I10: A17 | J10: 80 | L10: 78.4 | M10: 6 | N10: 是
A11: 008 | B11: 梅洁 | C11: 2305000103014 | D11: 1011 | E11: 小学语文 | F11: 小学教师 | G11: 76 | H11: A | I11: A08 | J11: 79.2 | L11: 77.92 | M11: 8 | N11: 是
A12: 009 | B12: 李悦 | C12: 2305000101914 | D12: 1011 | E12: 小学语文 | F12: 小学教师 | G12: 78 | H12: A | I12: A15 | J12: 77.6 | L12: 77.76 | M12: 9 | N12: 是
A13: 010 | B13: 李肖涵 | C13: 2305000101108 | D13: 1011 | E13: 小学语文 | F13: 小学教师 | G13: 79.5 | H13: A | I13: A14 | J13: 75.8 | L13: 77.28 | M13: 10 | N13: 是
A14: 011 | B14: 钱炜 | C14: 2305000101906 | D14: 1011 | E14: 小学语文 | F14: 小学教师 | G14: 75.5 | H14: A | I14: A10 | J14: 77.8 | L14: 76.88 | M14: 11 | N14: 是 | O14: 递补
A15: 012 | B15: 王超群 | C15: 2305000101105 | D15: 1011 | E15: 小学语文 | F15: 小学教师 | G15: 77 | H15: A | I15: A22 | J15: 76.8 | L15: 76.88
A16: 013 | B16: 郭媛 | C16: 2305000100513 | D16: 1011 | E16: 小学语文 | F16: 小学教师 | G16: 76.5 | H16: A | I16: A12 | J16: 76.8 | L16: 76.68
A17: 014 | B17: 刘锦煜 | C17: 2305000102511 | D17: 1011 | E17: 小学语文 | F17: 小学教师 | G17: 78.5 | H17: A | I17: A23 | J17: 75.4 | L17: 76.64
A18: 015 | B18: 孙铭 | C18: 2305000101304 | D18: 1011 | E18: 小学语文 | F18: 小学教师 | G18: 81.5 | H18: A | I18: A11 | J18: 73.4 | L18: 76.64
A19: 016 | B19: 邰泽雯 | C19: 2305000102508 | D19: 1011 | E19: 小学语文 | F19: 小学教师 | G19: 76.5 | H19: A | I19: A24 | J19: 76.6 | L19: 76.56
A20: 017 | B20: 张斓 | C20: 2305000101830 | D20: 1011 | E20: 小学语文 | F20: 小学教师 | G20: 76 | H20: A | I20: A02 | J20: 76.6 | L20: 76.36
A21: 018 | B21: 姚春江 | C21: 2305000103027 | D21: 1011 | E21: 小学语文 | F21: 小学教师 | G21: 83.5 | H21: A | I21: A20 | J21: 71.6 | L21: 76.36
A22: 019 | B22: 钱宏安 | C22: 2305000101623 | D22: 1011 | E22: 小学语文 | F22: 小学教师 | G22: 75.5 | H22: A | I22: A21 | J22: 76.8 | L22: 76.28 | O22: 递补
A23: 020 | B23: 范丹红 | C23: 2305000102309 | D23: 1011 | E23: 小学语文 | F23: 小学教师 | G23: 75.5 | H23: A | I23: A16 | J23: 76.6 | L23: 76.16 | O23: 递补
A24: 021 | B24: 常琪 | C24: 2305000102926 | D24: 1011 | E24: 小学语文 | F24: 小学教师 | G24: 77 | H24: A | I24: A01 | J24: 74.2 | L24: 75.32
A25: 022 | B25: 朱佳晨 | C25: 2305000102901 | D25: 1011 | E25: 小学语文 | F25: 小学教师 | G25: 76.5 | H25: A | I25: A03 | J25: 74 | L25: 75
A26: 023 | B26: 周仕琦 | C26: 2305000100919 | D26: 1011 | E26: 小学语文 | F26: 小学教师 | G26: 75.5 | H26: A | I26: A05 | J26: 73.6 | L26: 74.36 | O26: 递补
A27: 024 | B27: 冯晶晶 | C27: 2305000101715 | D27: 1011 | E27: 小学语文 | F27: 小学教师 | G27: 76 | H27: A | I27: A07 | J27: 66 | L27: 70
A28: 025 | B28: 朱云阳 | C28: 2305000100718 | D28: 1011 | E28: 小学语文 | F28: 小学教师 | G28: 84 | H28: B | I28: B17 | J28: 85 | L28: 84.6 | M28: 1 | N28: 是
A29: 026 | B29: 方玲 | C29: 2305000102914 | D29: 1011 | E29: 小学语文 | F29: 小学教师 | G29: 79.5 | H29: B | I29: B05 | J29: 82.8 | L29: 81.48 | M29: 2 | N29: 是
A30: 027 | B30: 鲍以琳 | C30: 2305000103006 | D30: 1011 | E30: 小学语文 | F30: 小学教师 | G30: 83.5 | H30: B | I30: B01 | J30: 80 | L30: 81.4 | M30: 3 | N30: 是
A31: 028 | B31: 叶双 | C31: 2305000102312 | D31: 1011 | E31: 小学语文 | F31: 小学教师 | G31: 79.5 | H31: B | I31: B10 | J31: 82.2 | L31: 81.12 | M31: 4 | N31: 是
A32: 029 | B32: 邵鎏 | C32: 2305000101320 | D32: 1011 | E32: 小学语文 | F32: 小学教师 | G32: 79 | H32: B | I32: B22 | J32: 82.4 | L32: 81.04 | M32: 5 | N32: 是
A33: 030 | B33: 薛心瑶 | C33: 2305000100425 | D33: 1011 | E33: 小学语文 | F33: 小学教师 | G33: 77 | H33: B | I33: B09 | J33: 80.6 | L33: 79.16 | M33: 6 | N33: 是
A34: 031 | B34: 陆湘 | C34: 2305000100106 | D34: 1011 | E34: 小学语文 | F34: 小学教师 | G34: 75.5 | H34: B | I34: B20 | J34: 80.4 | L34: 78.44 | M34: 7 | N34: 是 | O34: 递补
A35: 032 | B35: 柴嘉泞 | C35: 2305000103130 | D35: 1011 | E35: 小学语文 | F35: 小学教师 | G35: 78.5 | H35: B | I35: B24 | J35: 78.2 | L35: 78.32 | M35: 8 | N35: 是
A36: 033 | B36: 朱殷 | C36: 2305000101503 | D36: 1011 | E36: 小学语文 | F36: 小学教师 | G36: 78.5 | H36: B | I36: B19 | J36: 77.6 | L36: =G36*0.4+J36*0.6 -> 77.96 | M36: 9 | N36: 是
A37: 034 | B37: 袁天宇 | C37: 2305000101321 | D37: 1011 | E37: 小学语文 | F37: 小学教师 | G37: 81 | H37: B | I37: B14 | J37: 75.6 | L37: 77.76 | M37: 10 | N37: 是
A38: 035 | B38: 张羽 | C38: 2305000102013 | D38: 1011 | E38: 小学语文 | F38: 小学教师 | G38: 78 | H38: B | I38: B16 | J38: 77.2 | L38: 77.52 | M38: 11 | N38: 是
A39: 036 | B39: 周钰洁 | C39: 2305000102215 | D39: 1011 | E39: 小学语文 | F39: 小学教师 | G39: 85.5 | H39: B | I39: B07 | J39: 71.8 | L39: 77.28
A40: 037 | B40: 朱昕怡 | C40: 2305000103219 | D40: 1011 | E40: 小学语文 | F40: 小学教师 | G40: 82 | H40: B | I40: B06 | J40: 73.2 | L40: 76.72
A41: 038 | B41: 许兴月 | C41: 2305000101101 | D41: 1011 | E41: 小学语文 | F41: 小学教师 | G41: 76.5 | H41: B | I41: B08 | J41: 76.8 | L41: 76.68
A42: 039 | B42: 吴晓琳 | C42: 2305000100301 | D42: 1011 | E42: 小学语文 | F42: 小学教师 | G42: 80.5 | H42: B | I42: B23 | J42: 73.6 | L42: 76.36
A43: 040 | B43: 蒲佳 | C43: 2305000101129 | D43: 1011 | E43: 小学语文 | F43: 小学教师 | G43: 81 | H43: B | I43: B03 | J43: 71 | L43: 75
A44: 041 | B44: 刘霞 | C44: 2305000101322 | D44: 1011 | E44: 小学语文 | F44: 小学教师 | G44: 76 | H44: B | I44: B18 | J44: 73.8 | L44: 74.68
A45: 042 | B45: 沙佳韵 | C45: 2305000102512 | D45: 1011 | E45: 小学语文 | F45: 小学教师 | G45: 76 | H45: B | I45: B11 | J45: 73.2 | L45: 74.32
A46: 043 | B46: 张咪 | C46: 2305000101912 | D46: 1011 | E46: 小学语文 | F46: 小学教师 | G46: 77 | H46: B | I46: B04 | J46: 72 | L46: 74
A47: 044 | B47: 刘畅 | C47: 2305000100218 | D47: 1011 | E47: 小学语文 | F47: 小学教师 | G47: 78.5 | H47: B | I47: B02 | J47: 71 | L47: 74
A48: 045 | B48: 徐银萍 | C48: 2305000101403 | D48: 1011 | E48: 小学语文 | F48: 小学教师 | G48: 76.5 | H48: B | I48: B21 | J48: 72 | L48: 73.8
A49: 046 | B49: 刘江南 | C49: 2305000101606 | D49: 1011 | E49: 小学语文 | F49: 小学教师 | G49: 76 | H49: B | I49: B13 | J49: 71.2 | L49: 73.12
A50: 047 | B50: 赵隽林 | C50: 2305000100820 | D50: 1011 | E50: 小学语文 | F50: 小学教师 | G50: 75.5 | H50: B | I50: B15 | J50: 68 | L50: 71 | O50: 递补
A51: 048 | B51: 徐雯 | C51: 2305000101430 | D51: 1011 | E51: 小学语文 | F51: 小学教师 | G51: 76 | H51: B | I51: B12 | J51: 65.4 | L51: 69.64
A52: 049 | B52: 张梓歆 | C52: 2305000101207 | D52: 1011 | E52: 小学语文 | F52: 小学教师 | G52: 77.5 | H52: C | I52: C11 | J52: 85.8 | L52: 82.48 | M52: 1 | N52: 是
A53: 050 | B53: 戴心怡 | C53: 2305000101107 | D53: 1011 | E53: 小学语文 | F53: 小学教师 | G53: 78.5 | H53: C | I53: C07 | J53: 85 | L53: 82.4 | M53: 2 | N53: 是
A54: 051 | B54: 卢佳怡 | C54: 2305000102228 | D54: 1011 | E54: 小学语文 | F54: 小学教师 | G54: 77.5 | H54: C | I54: C04 | J54: 83.6 | L54: 81.16 | M54: 3 | N54: 是
A55: 052 | B55: 朱静芝 | C55: 2305000101719 | D55: 1011 | E55: 小学语文 | F55: 小学教师 | G55: 82 | H55: C | I55: C17 | J55: 80.4 | L55: 81.04 | M55: 4 | N55: 是
A56: 053 | B56: 陈家飞 | C56: 2305000102404 | D56: 1011 | E56: 小学语文 | F56: 小学教师 | G56: 79 | H56: C | I56: C20 | J56: 82 | L56: 80.8 | M56: 5 | N56: 是
A57: 054 | B57: 胡一鸣 | C57: 2305000103016 | D57: 1011 | E57: 小学语文 | F57: 小学教师 | G57: 79 | H57: C | I57: C12 | J57: 81.4 | L57: 80.44 | M57: 6 | N57: 是
A58: 055 | B58: 袁佳怡 | C58: 2305000102314 | D58: 1011 | E58: 小学语文 | F58: 小学教师 | G58: 79.5 | H58: C | I58: C03 | J58: 81 | L58: 80.4 | M58: 7 | N58: 是
A59: 056 | B59: 陈洁 | C59: 2305000100114 | D59: 1011 | E59: 小学语文 | F59: 小学教师 | G59: 75.5 | H59: C | I59: C02 | J59: 83.6 | L59: 80.36 | M59: 8 | N59: 是 | O59: 递补
A60: 057 | B60: 朱伟洁 | C60: 2305000100209 | D60: 1011 | E60: 小学语文 | F60: 小学教师 | G60: 80.5 | H60: C | I60: C09 | J60: 80.2 | L60: 80.32 | M60: 9 | N60: 是
A61: 058 | B61: 徐嘉 | C61: 2305000103322 | D61: 1011 | E61: 小学语文 | F61: 小学教师 | G61: 77.5 | H61: C | I61: C24 | J61: 82 | L61: 80.2 | M61: 10 | N61: 是
A62: 059 | B62: 钱敏 | C62: 2305000101510 | D62: 1011 | E62: 小学语文 | F62: 小学教师 | G62: 78 | H62: C | I62: C22 | J62: 81.4 | L62: 80.04 | M62: 11 | N62: 是
A63: 060 | B63: 赵玲玲 | C63: 2305000100102 | D63: 1011 | E63: 小学语文 | F63: 小学教师 | G63: 80 | H63: C | I63: C23 | J63: 80 | L63: 80
A64: 061 | B64: 杨润 | C64: 2305000102207 | D64: 1011 | E64: 小学语文 | F64: 小学教师 | G64: 77 | H64: C | I64: C15 | J64: 81.8 | L64: 79.88
A65: 062 | B65: 许佳诺 | C65: 2305000103313 | D65: 1011 | E65: 小学语文 | F65: 小学教师 | G65: 79 | H65: C | I65: C14 | J65: 79.8 | L65: 79.48
A66: 063 | B66: 陈奕涵 | C66: 2305000101220 | D66: 1011 | E66: 小学语文 | F66: 小学教师 | G66: 78.5 | H66: C | I66: C16 | J66: 80 | L66: 79.4
A67: 064 | B67: 潘耀婷 | C67: 2305000102427 | D67: 1011 | E67: 小学语文 | F67: 小学教师 | G67: 79.5 | H67: C | I67: C05 | J67: 78.2 | L67: 78.72
A68: 065 | B68: 阙源 | C68: 2305000100813 | D68: 1011 | E68: 小学语文 | F68: 小学教师 | G68: 78.5 | H68: C | I68: C21 | J68: 78.6 | L68: =G68*0.4+J68*0.6 -> 78.56
A69: 066 | B69: 马慧颖 | C69: 2305000100828 | D69: 1011 | E69: 小学语文 | F69: 小学教师 | G69: 76.5 | H69: C | I69: C10 | J69: 78.8 | L69: 77.88
A70: 067 | B70: 胡艳云 | C70: 2305000100229 | D70: 1011 | E70: 小学语文 | F70: 小学教师 | G70: 80 | H70: C | I70: C19 | J70: 76.4 | L70: 77.84
A71: 068 | B71: 贾喻涵 | C71: 2305000102223 | D71: 1011 | E71: 小学语文 | F71: 小学教师 | G71: 76.5 | H71: C | I71: C01 | J71: 76.8 | L71: 76.68
A72: 069 | B72: 吴柯妤 | C72: 2305000100509 | D72: 1011 | E72: 小学语文 | F72: 小学教师 | G72: 81.5 | H72: C | I72: C06 | J72: 73.4 | L72: 76.64
A73: 070 | B73: 姚娜 | C73: 2305000100929 | D73: 1011 | E73: 小学语文 | F73: 小学教师 | G73: 75.5 | H73: C | I73: C13 | J73: 76.8 | L73: 76.28 | O73: 递补
A74: 071 | B74: 孔源源 | C74: 2305000100412 | D74: 1011 | E74: 小学语文 | F74: 小学教师 | G74: 75.5 | H74: C | I74: C18 | J74: 75 | L74: 75.2 | O74: 递补
A75: 072 | B75: 刘桂丹 | C75: 2305000102010 | D75: 1011 | E75: 小学语文 | F75: 小学教师 | G75: 76.5 | H75: C | I75: C08 | J75: 72.8 | L75: 74.28
A76: 073 | B76: 周莉晶 | C76: 2305000100704 | D76: 1011 | E76: 小学语文 | F76: 小学教师 | G76: 81 | H76: D | I76: D02 | J76: 82.6 | L76: 81.96 | M76: 1 | N76: 是
A77: 074 | B77: 赵宇阳 | C77: 2305000101418 | D77: 1011 | E77: 小学语文 | F77: 小学教师 | G77: 85.5 | H77: D | I77: D05 | J77: 78.6 | L77: 81.36 | M77: 2 | N77: 是
A78: 075 | B78: 汤雯洁 | C78: 2305000100522 | D78: 1011 | E78: 小学语文 | F78: 小学教师 | G78: 78.5 | H78: D | I78: D14 | J78: 82 | L78: 80.6 | M78: 3 | N78: 是
A79: 076 | B79: 何明鸿 | C79: 2305000102801 | D79: 1011 | E79: 小学语文 | F79: 小学教师 | G79: 81 | H79: D | I79: D16 | J79: 79 | L79: 79.8 | M79: 4 | N79: 是
A80: 077 | B80: 惠霞 | C80: 2305000103019 | D80: 1011 | E80: 小学语文 | F80: 小学教师 | G80: 80.5 | H80: D | I80: D23 | J80: 77 | L80: 78.4 | M80: 5 | N80: 是
A81: 078 | B81: 许雅婷 | C81: 2305000100530 | D81: 1011 | E81: 小学语文 | F81: 小学教师 | G81: 75.5 | H81: D | I81: D08 | J81: 80.2 | L81: 78.32 | M81: 6 | N81: 是 | O81: 递补
A82: 079 | B82: 朱倩 | C82: 2305000101607 | D82: 1011 | E82: 小学语文 | F82: 小学教师 | G82: 77.5 | H82: D | I82: D13 | J82: 78.2 | L82: 77.92 | M82: 7 | N82: 是
A83: 080 | B83: 马维玲 | C83: 2305000101713 | D83: 1011 | E83: 小学语文 | F83: 小学教师 | G83: 79 | H83: D | I83: D24 | J83: 76.8 | L83: 77.68 | M83: 8 | N83: 是
A84: 081 | B84: 殷湖烨 | C84: 2305000101216 | D84: 1011 | E84: 小学语文 | F84: 小学教师 | G84: 82.5 | H84: D | I84: D18 | J84: 74.2 | L84: 77.52 | M84: 9 | N84: 是
A85: 082 | B85: 薛晨琳 | C85: 2305000103223 | D85: 1011 | E85: 小学语文 | F85: 小学教师 | G85: 75.5 | H85: D | I85: D17 | J85: 78.6 | L85: 77.36 | M85: 10 | N85: 是 | O85: 递补
A86: 083 | B86: 董梅 | C86: 2305000101306 | D86: 1011 | E86: 小学语文 | F86: 小学教师 | G86: 77 | H86: D | I86: D12 | J86: 77.6 | L86: 77.36 | M86: 11 | N86: 是
A87: 084 | B87: 徐芯蕾 | C87: 2305000101618 | D87: 1011 | E87: 小学语文 | F87: 小学教师 | G87: 77.5 | H87: D | I87: D09 | J87: 76.8 | L87: 77.08
A88: 085 | B88: 赵彦婷 | C88: 2305000100620 | D88: 1011 | E88: 小学语文 | F88: 小学教师 | G88: 76.5 | H88: D | I88: D15 | J88: 76.4 | L88: 76.44
A89: 086 | B89: 王婕 | C89: 2305000102501 | D89: 1011 | E89: 小学语文 | F89: 小学教师 | G89: 75.5 | H89: D | I89: D10 | J89: 76.4 | L89: 76.04 | O89: 递补
A90: 087 | B90: 龚馨语 | C90: 2305000102416 | D90: 1011 | E90: 小学语文 | F90: 小学教师 | G90: 80 | H90: D | I90: D11 | J90: 73 | L90: 75.8
A91: 088 | B91: 王予 | C91: 2305000100108 | D91: 1011 | E91: 小学语文 | F91: 小学教师 | G91: 77 | H91: D | I91: D22 | J91: 74.4 | L91: 75.44
A92: 089 | B92: 钱梦婧 | C92: 2305000100430 | D92: 1011 | E92: 小学语文 | F92: 小学教师 | G92: 75.5 | H92: D | I92: D19 | J92: 74.8 | L92: 75.08 | O92: 递补
A93: 090 | B93: 周婧 | C93: 2305000100316 | D93: 1011 | E93: 小学语文 | F93: 小学教师 | G93: 78.5 | H93: D | I93: D01 | J93: 72.8 | L93: 75.08
A94: 091 | B94: 朱家源 | C94: 2305000102403 | D94: 1011 | E94: 小学语文 | F94: 小学教师 | G94: 75.5 | H94: D | I94: D07 | J94: 74.2 | L94: 74.72 | O94: 递补
A95: 092 | B95: 毛晓婷 | C95: 2305000101514 | D95: 1011 | E95: 小学语文 | F95: 小学教师 | G95: 76.5 | H95: D | I95: D21 | J95: 73 | L95: 74.4
A96: 093 | B96: 陈书恬 | C96: 2305000100307 | D96: 1011 | E96: 小学语文 | F96: 小学教师 | G96: 75.5 | H96: D | I96: D06 | J96: 73 | L96: 74 | O96: 递补
A97: 094 | B97: 归伊伊 | C97: 2305000102208 | D97: 1011 | E97: 小学语文 | F97: 小学教师 | G97: 79 | H97: D | I97: D03 | J97: 70.2 | L97: 73.72
A98: 095 | B98: 李悦 | C98: 2305000101404 | D98: 1011 | E98: 小学语文 | F98: 小学教师 | G98: 78.5 | H98: D | I98: D20 | J98: 70.2 | L98: 73.52
A99: 096 | B99: 李慧茹 | C99: 2305000102305 | D99: 1011 | E99: 小学语文 | F99: 小学教师 | G99: 77.5 | H99: D | I99: D04 | J99: 68.6 | L99: 72.16
A100: 097 | B100: 谢盈盈 | C100: 2305000101603 | D100: 1011 | E100: 小学语文 | F100: 小学教师 | G100: 78.5 | H100: E | I100: E19 | J100: 80.2 | L100: =G100*0.4+J100*0.6 -> 79.52 | M100: 1 | N100: 是
A101: 098 | B101: 王星雨 | C101: 2305000103315 | D101: 1011 | E101: 小学语文 | F101: 小学教师 | G101: 78.5 | H101: E | I101: E07 | J101: 79.4 | L101: 79.04 | M101: 2 | N101: 是
A102: 099 | B102: 张树怡 | C102: 2305000102020 | D102: 1011 | E102: 小学语文 | F102: 小学教师 | G102: 82 | H102: E | I102: E04 | J102: 76.6 | L102: 78.76 | M102: 3 | N102: 是
A103: 100 | B103: 徐晨璟 | C103: 2305000103106 | D103: 1011 | E103: 小学语文 | F103: 小学教师 | G103: 82 | H103: E | I103: E09 | J103: 76.4 | L103: 78.64 | M103: 4 | N103: 是
A104: 101 | B104: 杨林慧 | C104: 2305000102029 | D104: 1011 | E104: 小学语文 | F104: 小学教师 | G104: 77 | H104: E | I104: E01 | J104: 79.4 | L104: 78.44 | M104: 5 | N104: 是
A105: 102 | B105: 吴维 | C105: 2305000102328 | D105: 1011 | E105: 小学语文 | F105: 小学教师 | G105: 77 | H105: E | I105: E03 | J105: 78.8 | L105: 78.08 | M105: 6 | N105: 是
A106: 103 | B106: 陶筱涵 | C106: 2305000100609 | D106: 1011 | E106: 小学语文 | F106: 小学教师 | G106: 78 | H106: E | I106: E26 | J106: 77.6 | L106: 77.76 | M106: 7 | N106: 是
A107: 104 | B107: 何媛 | C107: 2305000103118 | D107: 1011 | E107: 小学语文 | F107: 小学教师 | G107: 84 | H107: E | I107: E14 | J107: 73.6 | L107: 77.76 | M107: 8 | N107: 是
A108: 105 | B108: 吴天懿 | C108: 2305000103128 | D108: 1011 | E108: 小学语文 | F108: 小学教师 | G108: 78.5 | H108: E | I108: E17 | J108: 77.2 | L108: 77.72 | M108: 9 | N108: 是
A109: 106 | B109: 周子颖 | C109: 2305000102016 | D109: 1011 | E109: 小学语文 | F109: 小学教师 | G109: 76 | H109: E | I109: E11 | J109: 78.4 | L109: 77.44 | M109: 10 | N109: 是
A110: 107 | B110: 吴庆联 | C110: 2305000102304 | D110: 1011 | E110: 小学语文 | F110: 小学教师 | G110: 79.5 | H110: E | I110: E16 | J110: 76 | L110: 77.4 | M110: 11 | N110: 是
A111: 108 | B111: 沙泉锦 | C111: 2305000101708 | D111: 1011 | E111: 小学语文 | F111: 小学教师 | G111: 78.5 | H111: E | I111: E08 | J111: 76.6 | L111: 77.36 | M111: 12 | N111: 是
A112: 109 | B112: 李玥 | C112: 2305000102925 | D112: 1011 | E112: 小学语文 | F112: 小学教师 | G112: 76.5 | H112: E | I112: E10 | J112: 76.4 | L112: 76.44
A113: 110 | B113: 俞菲 | C113: 2305000100505 | D113: 1011 | E113: 小学语文 | F113: 小学教师 | G113: 80 | H113: E | I113: E15 | J113: 73.8 | L113: 76.28
A114: 111 | B114: 黄婷钰 | C114: 2305000103022 | D114: 1011 | E114: 小学语文 | F114: 小学教师 | G114: 76.5 | H114: E | I114: E25 | J114: 75.8 | L114: 76.08
A115: 112 | B115: 程妤涵 | C115: 2305000101412 | D115: 1011 | E115: 小学语文 | F115: 小学教师 | G115: 78 | H115: E | I115: E12 | J115: 74.8 | L115: 76.08
A116: 113 | B116: 张欢 | C116: 2305000100916 | D116: 1011 | E116: 小学语文 | F116: 小学教师 | G116: 78 | H116: E | I116: E13 | J116: 73.8 | L116: 75.48
A117: 114 | B117: 许硕文 | C117: 2305000100818 | D117: 1011 | E117: 小学语文 | F117: 小学教师 | G117: 78.5 | H117: E | I117: E06 | J117: 73.4 | L117: 75.44
A118: 115 | B118: 王佳慧 | C118: 2305000101911 | D118: 1011 | E118: 小学语文 | F118: 小学教师 | G118: 76 | H118: E | I118: E22 | J118: 75 | L118: 75.4
A119: 116 | B119: 陈禧晴 | C119: 2305000102915 | D119: 1011 | E119: 小学语文 | F119: 小学教师 | G119: 77.5 | H119: E | I119: E18 | J119: 74 | L119: 75.4
A120: 117 | B120: 陈蓝云 | C120: 2305000102502 | D120: 1011 | E120: 小学语文 | F120: 小学教师 | G120: 76 | H120: E | I120: E23 | J120: 74.4 | L120: 75.04
A121: 118 | B121: 胡汶成 | C121: 2305000103029 | D121: 1011 | E121: 小学语文 | F121: 小学教师 | G121: 75.5 | H121: E | I121: E05 | J121: 74.6 | L121: 74.96 | O121: 递补
A122: 119 | B122: 陈瑞 | C122: 2305000100720 | D122: 1011 | E122: 小学语文 | F122: 小学教师 | G122: 75.5 | H122: E | I122: E21 | J122: 71.6 | L122: 73.16 | O122: 递补
A123: 120 | B123: 陈晓晴 | C123: 2305000100730 | D123: 1011 | E123: 小学语文 | F123: 小学教师 | G123: 76 | H123: E | I123: E24 | J123: 71.2 | L123: 73.12
A124: 121 | B124: 黄薇 | C124: 2305000102514 | D124: 1011 | E124: 小学语文 | F124: 小学教师 | G124: 76.5 | H124: E | I124: E02 | J124: 70.2 | L124: 72.72
A125: 122 | B125: 孙亭亭 | C125: 2305000103216 | D125: 1011 | E125: 小学语文 | F125: 小学教师 | G125: 81 | H125: E | I125: E20 | J125: 62.6 | L125: 69.96
A126: 123 | B126: 单叶丹 | C126: 2305000102129 | D126: 1011 | E126: 小学语文 | F126: 小学教师 | G126: 81 | H126: F | I126: F03 | J126: 87.2 | L126: 84.72 | M126: 1 | N126: 是
A127: 124 | B127: 江晔丹 | C127: 2305000102828 | D127: 1011 | E127: 小学语文 | F127: 小学教师 | G127: 75.5 | H127: F | I127: F16 | J127: 90.4 | L127: 84.44 | M127: 2 | N127: 是 | O127: 递补
A128: 125 | B128: 丁楠 | C128: 2305000102021 | D128: 1011 | E128: 小学语文 | F128: 小学教师 | G128: 78.5 | H128: F | I128: F18 | J128: 85.8 | L128: 82.88 | M128: 3 | N128: 是
A129: 126 | B129: 刘佳红 | C129: 2305000102111 | D129: 1011 | E129: 小学语文 | F129: 小学教师 | G129: 86.5 | H129: F | I129: F22 | J129: 80.2 | L129: 82.72 | M129: 4 | N129: 是
A130: 127 | B130: 卢怡 | C130: 2305000102124 | D130: 1011 | E130: 小学语文 | F130: 小学教师 | G130: 75.5 | H130: F | I130: F26 | J130: 87.4 | L130: 82.64 | M130: 5 | N130: 是 | O130: 递补
A131: 128 | B131: 贾明杰 | C131: 2305000101605 | D131: 1011 | E131: 小学语文 | F131: 小学教师 | G131: 76.5 | H131: F | I131: F07 | J131: 85.4 | L131: 81.84 | M131: 6 | N131: 是
A132: 129 | B132: 施倩倩 | C132: 2305000102820 | D132: 1011 | E132: 小学语文 | F132: 小学教师 | G132: 80 | H132: F | I132: F08 | J132: 79.6 | L132: =G132*0.4+J132*0.6 -> 79.76 | M132: 7 | N132: 是
A133: 130 | B133: 朱玉婷 | C133: 2305000102307 | D133: 1011 | E133: 小学语文 | F133: 小学教师 | G133: 76 | H133: F | I133: F20 | J133: 82.2 | L133: 79.72 | M133: 8 | N133: 是
A134: 131 | B134: 崔家敏 | C134: 2305000102411 | D134: 1011 | E134: 小学语文 | F134: 小学教师 | G134: 79.5 | H134: F | I134: F05 | J134: 79 | L134: 79.2 | M134: 9 | N134: 是
A135: 132 | B135: 孙玥 | C135: 2305000100626 | D135: 1011 | E135: 小学语文 | F135: 小学教师 | G135: 76.5 | H135: F | I135: F14 | J135: 80.6 | L135: 78.96 | M135: 10 | N135: 是
A136: 133 | B136: 张妍 | C136: 2305000102708 | D136: 1011 | E136: 小学语文 | F136: 小学教师 | G136: 78 | H136: F | I136: F17 | J136: 79.6 | L136: 78.96 | M136: 11 | N136: 是
A137: 134 | B137: 戴吴君 | C137: 2305000100830 | D137: 1011 | E137: 小学语文 | F137: 小学教师 | G137: 76.5 | H137: F | I137: F25 | J137: 80.4 | L137: 78.84 | M137: 12 | N137: 是
A138: 135 | B138: 叶艺仟 | C138: 2305000103319 | D138: 1011 | E138: 小学语文 | F138: 小学教师 | G138: 76 | H138: F | I138: F15 | J138: 80.4 | L138: 78.64
A139: 136 | B139: 张梦洁 | C139: 2305000102419 | D139: 1011 | E139: 小学语文 | F139: 小学教师 | G139: 75.5 | H139: F | I139: F10 | J139: 80.4 | L139: 78.44 | O139: 递补
A140: 137 | B140: 刘文阳 | C140: 2305000101805 | D140: 1011 | E140: 小学语文 | F140: 小学教师 | G140: 78 | H140: F | I140: F03 | J140: 78.6 | L140: 78.36
A141: 138 | B141: 田苗 | C141: 2305000103127 | D141: 1011 | E141: 小学语文 | F141: 小学教师 | G141: 76 | H141: F | I141: F11 | J141: 79.8 | L141: 78.28
A142: 139 | B142: 张永雯 | C142: 2305000103207 | D142: 1011 | E142: 小学语文 | F142: 小学教师 | G142: 78.5 | H142: F | I142: F13 | J142: 77.8 | L142: 78.08
A143: 140 | B143: 于敏 | C143: 2305000100314 | D143: 1011 | E143: 小学语文 | F143: 小学教师 | G143: 76.5 | H143: F | I143: F19 | J143: 78.6 | L143: 77.76
A144: 141 | B144: 刘珺 | C144: 2305000100805 | D144: 1011 | E144: 小学语文 | F144: 小学教师 | G144: 78 | H144: F | I144: F02 | J144: 77.6 | L144: 77.76
A145: 142 | B145: 钱伊萌 | C145: 2305000103307 | D145: 1011 | E145: 小学语文 | F145: 小学教师 | G145: 77.5 | H145: F | I145: F09 | J145: 76.8 | L145: 77.08
A146: 143 | B146: 祁培文 | C146: 2305000101313 | D146: 1011 | E146: 小学语文 | F146: 小学教师 | G146: 78.5 | H146: F | I146: F24 | J146: 75.6 | L146: 76.76
A147: 144 | B147: 瞿增艺 | C147: 2305000103012 | D147: 1011 | E147: 小学语文 | F147: 小学教师 | G147: 76 | H147: F | I147: F23 | J147: 76.6 | L147: 76.36
A148: 145 | B148: 王青 | C148: 2305000103018 | D148: 1011 | E148: 小学语文 | F148: 小学教师 | G148: 78 | H148: F | I148: F21 | J148: 73.8 | L148: 75.48
A149: 146 | B149: 黄对 | C149: 2305000102002 | D149: 1011 | E149: 小学语文 | F149: 小学教师 | G149: 78.5 | H149: F | I149: F12 | J149: 72.8 | L149: 75.08
A150: 147 | B150: 潘梦瑜 | C150: 2305000102026 | D150: 1011 | E150: 小学语文 | F150: 小学教师 | G150: 75.5 | H150: F | I150: F06 | J150: 74.4 | L150: 74.84 | O150: 递补
A151: 148 | B151: 徐潇羽 | C151: 2305000101420 | D151: 1011 | E151: 小学语文 | F151: 小学教师 | G151: 87 | J151: —— | L151: —— | O151: 缺考
A152: 149 | B152: 刘怡婷 | C152: 2305000101330 | D152: 1011 | E152: 小学语文 | F152: 小学教师 | G152: 79 | J152: —— | L152: —— | O152: 缺考
A153: 150 | B153: 蒋莎莎 | C153: 2305000103209 | D153: 1011 | E153: 小学语文 | F153: 小学教师 | G153: 79 | J153: —— | L153: —— | O153: 缺考
A154: 151 | B154: 孙誉绫 | C154: 2305000100628 | D154: 1011 | E154: 小学语文 | F154: 小学教师 | G154: 78 | J154: —— | L154: —— | O154: 缺考
A155: 152 | B155: 张雨庭 | C155: 2305000101310 | D155: 1011 | E155: 小学语文 | F155: 小学教师 | G155: 77 | J155: —— | L155: —— | O155: 缺考
A156: 153 | B156: 江满羽 | C156: 2305000101201 | D156: 1011 | E156: 小学语文 | F156: 小学教师 | G156: 76.5 | J156: —— | L156: —— | O156: 缺考
A157: 154 | B157: 宦夕媛 | C157: 2305000101229 | D157: 1011 | E157: 小学语文 | F157: 小学教师 | G157: 76 | J157: —— | L157: —— | O157: 缺考
A158: 155 | B158: 赵焱 | C158: 2305000101509 | D158: 1011 | E158: 小学语文 | F158: 小学教师 | G158: 75.5 | J158: —— | L158: —— | O158: 缺考
A159: 156 | B159: 张杰飞 | C159: 2305000103827 | D159: 1021 | E159: 小学数学 | F159: 小学教师 | G159: 87 | H159: A | I159: A10 | J159: 80 | L159: =G159*0.4+J159*0.6 -> 82.8 | M159: 1 | N159: 是
A160: 157 | B160: 吕朱欢 | C160: 2305000105204 | D160: 1021 | E160: 小学数学 | F160: 小学教师 | G160: 85 | H160: A | I160: A20 | J160: 81.1 | L160: 82.66 | M160: 2 | N160: 是
A161: 158 | B161: 葛蔓 | C161: 2305000105119 | D161: 1021 | E161: 小学数学 | F161: 小学教师 | G161: 88 | H161: A | I161: A05 | J161: 79.1 | L161: 82.66 | M161: 3 | N161: 是
A162: 159 | B162: 赵雪铭 | C162: 2305000104222 | D162: 1021 | E162: 小学数学 | F162: 小学教师 | G162: 82 | H162: A | I162: A19 | J162: 79.3 | L162: 80.38 | M162: 4 | N162: 是
A163: 160 | B163: 钱晓杰 | C163: 2305000104318 | D163: 1021 | E163: 小学数学 | F163: 小学教师 | G163: 80 | H163: A | I163: A03 | J163: 79.8 | L163: 79.88 | M163: 5 | N163: 是
A164: 161 | B164: 苏晓烨 | C164: 2305000105124 | D164: 1021 | E164: 小学数学 | F164: 小学教师 | G164: 86 | H164: A | I164: A02 | J164: 75 | L164: 79.4 | M164: 6 | N164: 是
A165: 162 | B165: 黄婷 | C165: 2305000104220 | D165: 1021 | E165: 小学数学 | F165: 小学教师 | G165: 82 | H165: A | I165: A04 | J165: 77.6 | L165: 79.36 | M165: 7 | N165: 是
A166: 163 | B166: 莫丑 | C166: 2305000104010 | D166: 1021 | E166: 小学数学 | F166: 小学教师 | G166: 83 | H166: A | I166: A18 | J166: 76.2 | L166: 78.92 | M166: 8 | N166: 是
A167: 164 | B167: 沈珂如 | C167: 2305000104711 | D167: 1021 | E167: 小学数学 | F167: 小学教师 | G167: 82 | H167: A | I167: A11 | J167: 75.8 | L167: 78.28 | M167: 9 | N167: 是
A168: 165 | B168: 施怡婷 | C168: 2305000105211 | D168: 1021 | E168: 小学数学 | F168: 小学教师 | G168: 83 | H168: A | I168: A14 | J168: 75.1 | L168: 78.26 | M168: 10 | N168: 是
A169: 166 | B169: 张馨之 | C169: 2305000103527 | D169: 1021 | E169: 小学数学 | F169: 小学教师 | G169: 76 | H169: A | I169: A06 | J169: 79.4 | L169: 78.04 | M169: 11 | N169: 是
A170: 167 | B170: 徐钰晓 | C170: 2305000104110 | D170: 1021 | E170: 小学数学 | F170: 小学教师 | G170: 84 | H170: A | I170: A01 | J170: 74 | L170: 78
A171: 168 | B171: 梅嘉妮 | C171: 2305000104526 | D171: 1021 | E171: 小学数学 | F171: 小学教师 | G171: 76 | H171: A | I171: A08 | J171: 79.3 | L171: 77.98
A172: 169 | B172: 李珊 | C172: 2305000104811 | D172: 1021 | E172: 小学数学 | F172: 小学教师 | G172: 89 | H172: A | I172: A15 | J172: 70.4 | L172: 77.84
A173: 170 | B173: 严雨萱 | C173: 2305000105229 | D173: 1021 | E173: 小学数学 | F173: 小学教师 | G173: 80 | H173: A | I173: A13 | J173: 75.86 | L173: 77.516
A174: 171 | B174: 葛慧敏 | C174: 2305000105112 | D174: 1021 | E174: 小学数学 | F174: 小学教师 | G174: 76 | H174: A | I174: A07 | J174: 77 | L174: 76.6
A175: 172 | B175: 孟书伊 | C175: 2305000104105 | D175: 1021 | E175: 小学数学 | F175: 小学教师 | G175: 80 | H175: A | I175: A22 | J175: 73.1 | L175: 75.86
A176: 173 | B176: 冯雨阳 | C176: 2305000105111 | D176: 1021 | E176: 小学数学 | F176: 小学教师 | G176: 80 | H176: A | I176: A16 | J176: 72.4 | L176: 75.44
A177: 174 | B177: 马晨跃 | C177: 2305000103601 | D177: 1021 | E177: 小学数学 | F177: 小学教师 | G177: 77 | H177: A | I177: A17 | J177: 74.26 | L177: 75.356
A178: 175 | B178: 仇思敏 | C178: 2305000103628 | D178: 1021 | E178: 小学数学 | F178: 小学教师 | G178: 79 | H178: A | I178: A12 | J178: 72.32 | L178: 74.992
A179: 176 | B179: 赵凌雁 | C179: 2305000104602 | D179: 1021 | E179: 小学数学 | F179: 小学教师 | G179: 76 | H179: A | I179: A09 | J179: 70.6 | L179: 72.76
A180: 177 | B180: 洪珊 | C180: 2305000103722 | D180: 1021 | E180: 小学数学 | F180: 小学教师 | G180: 77 | H180: A | I180: A21 | J180: 68.8 | L180: 72.08
A181: 178 | B181: 汤子怡 | C181: 2305000104013 | D181: 1021 | E181: 小学数学 | F181: 小学教师 | G181: 82 | H181: B | I181: B03 | J181: 77.4 | L181: 79.24 | M181: 1 | N181: 是
A182: 179 | B182: 查可瑶 | C182: 2305000104323 | D182: 1021 | E182: 小学数学 | F182: 小学教师 | G182: 82 | H182: B | I182: B01 | J182: 76.8 | L182: 78.88 | M182: 2 | N182: 是
A183: 180 | B183: 翟一帆 | C183: 2305000105314 | D183: 1021 | E183: 小学数学 | F183: 小学教师 | G183: 84 | H183: B | I183: B22 | J183: 75.4 | L183: 78.84 | M183: 3 | N183: 是
A184: 181 | B184: 徐铭宇 | C184: 2305000104407 | D184: 1021 | E184: 小学数学 | F184: 小学教师 | G184: 84 | H184: B | I184: B18 | J184: 74.8 | L184: 78.48 | M184: 4 | N184: 是
A185: 182 | B185: 徐浩铭 | C185: 2305000104007 | D185: 1021 | E185: 小学数学 | F185: 小学教师 | G185: 79 | H185: B | I185: B13 | J185: 78 | L185: 78.4 | M185: 5 | N185: 是
A186: 183 | B186: 崔慈 | C186: 2305000103707 | D186: 1021 | E186: 小学数学 | F186: 小学教师 | G186: 82 | H186: B | I186: B16 | J186: 75.6 | L186: 78.16 | M186: 6 | N186: 是
A187: 184 | B187: 谢欣宜 | C187: 2305000105221 | D187: 1021 | E187: 小学数学 | F187: 小学教师 | G187: 88 | H187: B | I187: B20 | J187: 71.14 | L187: 77.884 | M187: 7 | N187: 是
A188: 185 | B188: 戴琦慧 | C188: 2305000103805 | D188: 1021 | E188: 小学数学 | F188: 小学教师 | G188: 77 | H188: B | I188: B02 | J188: 78.22 | L188: 77.732 | M188: 8 | N188: 是
A189: 186 | B189: 丁康婷 | C189: 2305000104011 | D189: 1021 | E189: 小学数学 | F189: 小学教师 | G189: 82 | H189: B | I189: B04 | J189: 74.8 | L189: 77.68 | M189: 9 | N189: 是
A190: 187 | B190: 余戴可伊 | C190: 2305000103807 | D190: 1021 | E190: 小学数学 | F190: 小学教师 | G190: 82 | H190: B | I190: B09 | J190: 73 | L190: 76.6 | M190: 10 | N190: 是
A191: 188 | B191: 邵爱云 | C191: 2305000104514 | D191: 1021 | E191: 小学数学 | F191: 小学教师 | G191: 86 | H191: B | I191: B17 | J191: 70.3 | L191: =G191*0.4+J191*0.6 -> 76.58 | M191: 11 | N191: 是
A192: 189 | B192: 丁雨 | C192: 2305000104001 | D192: 1021 | E192: 小学数学 | F192: 小学教师 | G192: 82 | H192: B | I192: B08 | J192: 72.6 | L192: 76.36
A193: 190 | B193: 何志超 | C193: 2305000104026 | D193: 1021 | E193: 小学数学 | F193: 小学教师 | G193: 79 | H193: B | I193: B07 | J193: 73.8 | L193: 75.88
A194: 191 | B194: 费雨童 | C194: 2305000104621 | D194: 1021 | E194: 小学数学 | F194: 小学教师 | G194: 78 | H194: B | I194: B15 | J194: 72.6 | L194: 74.76
A195: 192 | B195: 吴洁 | C195: 2305000104310 | D195: 1021 | E195: 小学数学 | F195: 小学教师 | G195: 76 | H195: B | I195: B06 | J195: 72.8 | L195: 74.08
A196: 193 | B196: 董沈云 | C196: 2305000104226 | D196: 1021 | E196: 小学数学 | F196: 小学教师 | G196: 76 | H196: B | I196: B11 | J196: 71.7 | L196: 73.42
A197: 194 | B197: 周雪妮 | C197: 2305000103519 | D197: 1021 | E197: 小学数学 | F197: 小学教师 | G197: 85 | H197: B | I197: B10 | J197: 64.6 | L197: 72.76
A198: 195 | B198: 居梦怡 | C198: 2305000104517 | D198: 1021 | E198: 小学数学 | F198: 小学教师 | G198: 83 | H198: B | I198: B12 | J198: 65.4 | L198: 72.44
A199: 196 | B199: 金夏涵 | C199: 2305000104409 | D199: 1021 | E199: 小学数学 | F199: 小学教师 | G199: 86 | H199: B | I199: B21 | J199: 62.1 | L199: 71.66
A200: 197 | B200: 宋泰欣 | C200: 2305000104209 | D200: 1021 | E200: 小学数学 | F200: 小学教师 | G200: 78 | H200: B | I200: B14 | J200: 67.2 | L200: 71.52
... 98 more rows
